bitfinex-derivatives/quotes_BTCF0:USTF0_20250608
["timestamp","ask_amount","ask_price","bid_price","bid_amount"]
[1749351299819,0.1895403,105580.0,105570.0,0.94939061]
[1749351300013,0.1895406,105580.0,105570.0,0.94939061]
[1749351301015,0.0002,105580.0,105570.0,0.94939061]
[1749351301220,0.1895406,105580.0,105570.0,0.90506346]
[1749351301418,0.1893406,105580.0,105570.0,0.90506346]
[1749351301620,0.1895406,105580.0,105570.0,0.90506346]
[1749351302621,0.0002,105580.0,105570.0,0.90506346]
[1749351304924,0.1895407,105580.0,105570.0,0.90506346]
[1749351307027,0.0002,105580.0,105570.0,0.90506346]
[1749351308231,0.0002,105580.0,105570.0,0.86058257]
[1749351309335,0.0002,105580.0,105570.0,0.49978257]
[1749351309531,0.0002,105580.0,105570.0,1.22138257]
[1749351310336,0.1895406,105580.0,105570.0,1.22138257]
[1749351311237,0.29395736,105580.0,105570.0,1.22138257]
[1749351312626,0.1895406,105580.0,105570.0,1.22138257]
[1749351313843,0.0002,105580.0,105570.0,1.22138257]
[1749351314338,0.43373205,105590.0,105580.0,0.1893406]
[1749351314538,0.43373205,105590.0,105580.0,1.11445736]
[1749351314739,0.43373205,105590.0,105580.0,1.17795736]
[1749351315540,0.43373205,105590.0,105580.0,1.22224031]
[1749351315739,0.43373205,105590.0,105580.0,1.22324031]
[1749351316137,0.18946447,105590.0,105580.0,1.24248077]
[1749351316442,0.29408123,105590.0,105580.0,1.30155625]
[1749351317243,0.32508123,105590.0,105580.0,1.30155625]
[1749351317844,0.35578123,105590.0,105580.0,1.30155625]
[1749351318044,0.35578123,105590.0,105580.0,0.67373949]
[1749351318241,0.38748123,105590.0,105580.0,0.71822038]
[1749351318546,0.38748123,105590.0,105580.0,1.14786038]
[1749351318846,0.38748123,105590.0,105580.0,1.19219716]
[1749351319248,0.38748123,105590.0,105580.0,1.14786038]
[1749351320746,0.38748123,105590.0,105580.0,1.15190916]
[1749351322943,0.38748123,105590.0,105580.0,1.51270916]
[1749351326662,0.38748123,105590.0,105580.0,0.79110916]
[1749351326961,0.38748123,105590.0,105580.0,1.51270916]
[1749351327660,0.38748123,105590.0,105580.0,1.55707312]
[1749351327855,0.38748123,105590.0,105580.0,1.51270916]
[1749351328162,0.38748123,105590.0,105580.0,1.55707323]
[1749351328357,0.38748123,105590.0,105580.0,1.51270916]
[1749351328861,0.38748123,105590.0,105580.0,1.08306916]
[1749351329062,0.40748123,105590.0,105580.0,1.55699738]
[1749351329260,0.40748123,105590.0,105580.0,1.12743738]
[1749351329567,0.94748123,105590.0,105580.0,1.46823354]
[1749351329761,0.94748123,105590.0,105580.0,1.10743354]
[1749351330060,0.61748123,105590.0,105580.0,1.10743354]
[1749351330759,0.96748123,105590.0,105580.0,1.10743354]
[1749351331562,0.96748123,105590.0,105580.0,1.10747354]
[1749351331762,1.05617048,105590.0,105580.0,1.10747354]
[1749351331972,1.05617048,105590.0,105580.0,1.04839806]
[1749351336164,1.05617048,105590.0,105580.0,0.68759806]
[1749351336459,1.16058724,105590.0,105580.0,0.42945746]
[1749351341469,1.16058724,105590.0,105580.0,0.38508924]
[1749351347174,1.16058724,105590.0,105580.0,0.02428924]
[1749351347371,1.16058724,105590.0,105580.0,0.38508924]
[1749351347975,1.16038724,105590.0,105580.0,0.38508924]
[1749351348272,1.18981556,105590.0,105580.0,0.38508924]
[1749351350275,1.0853988,105590.0,105580.0,0.38508924]
[1749351351476,1.4461988,105590.0,105580.0,0.02428924]
[1749351353276,1.4461988,105590.0,105580.0,0.00504878]
[1749351354176,1.0853988,105590.0,105580.0,0.00504878]
[1749351354376,1.4461988,105590.0,105580.0,0.00504878]
[1749351357880,1.0853988,105590.0,105580.0,0.00504878]
[1749351358081,1.4461988,105590.0,105580.0,0.00504878]
[1749351358282,1.53489594,105590.0,105580.0,0.00504878]
[1749351358482,1.17409594,105590.0,105580.0,0.00504878]
[1749351358780,1.05597837,105590.0,105580.0,0.00504878]
[1749351359582,1.52119513,105590.0,105580.0,0.00504878]
[1749351359773,1.55061556,105590.0,105580.0,0.00504878]
[1749351362983,0.1893586,105570.0,105560.0,0.54754699]
[1749351363281,0.1893586,105570.0,105560.0,0.88701151]
[1749351363282,1.06110763,105570.0,105560.0,0.88701151]
[1749351363492,1.12380763,105570.0,105560.0,0.45757151]
[1749351363687,1.03511536,105570.0,105560.0,0.45757151]
[1749351364082,1.03511536,105570.0,105560.0,0.46157151]
[1749351365388,1.03511536,105570.0,105560.0,0.46457151]
[1749351366589,1.03511536,105570.0,105560.0,0.42020329]
[1749351366887,1.06541536,105570.0,105560.0,0.41720329]
[1749351367183,1.06541536,105570.0,105560.0,0.41320329]
[1749351368286,1.06541536,105570.0,105560.0,0.45757151]
[1749351371283,1.06541536,105570.0,105560.0,0.05240329]
[1749351371778,1.06541536,105570.0,105560.0,0.01950329]
[1749351372185,0.1893765,105560.0,105550.0,1.2758117]
[1749351372386,0.76379326,105560.0,105550.0,1.5658117]
[1749351373483,0.76379326,105560.0,105550.0,1.5668117]
[1749351373787,0.67379326,105560.0,105550.0,1.5668117]
[1749351374890,0.67379326,105560.0,105550.0,1.5688117]
[1749351376189,0.12,105560.0,105550.0,1.67322846]
[1749351376392,0.2840348,105580.0,105570.0,0.1893585]
[1749351376693,0.42845156,105580.0,105570.0,1.143153]
[1749351376892,0.42845156,105580.0,105570.0,1.238353]
[1749351377292,0.42845156,105580.0,105570.0,1.13393624]
[1749351377496,0.42865156,105580.0,105570.0,1.13393624]
[1749351377687,0.42865156,105580.0,105570.0,1.17825928]
[1749351377884,0.42865156,105580.0,105570.0,1.11916154]
[1749351378288,0.42965156,105580.0,105570.0,1.17825928]
[1749351378595,0.43065156,105580.0,105570.0,1.13393624]
[1749351378890,0.43065156,105580.0,105570.0,0.7487804]
[1749351379088,0.43065156,105580.0,105570.0,0.74878077]
[1749351379290,0.43065156,105580.0,105570.0,0.74878082]
[1749351379589,0.43065156,105580.0,105570.0,0.7528296]
[1749351382597,0.46065156,105580.0,105570.0,0.7528296]
[1749351388301,0.46065156,105580.0,105570.0,0.69373186]
[1749351394107,0.49225156,105580.0,105570.0,0.69373186]
[1749351398015,0.49225156,105580.0,105570.0,0.66093186]
[1749351398412,0.58094383,105580.0,105570.0,0.61660728]
[1749351399918,0.67958383,105580.0,105570.0,0.58570728]
[1749351400120,0.71238383,105580.0,105570.0,0.58570728]
[1749351405626,1.0205014,105580.0,105570.0,0.44067336]
[1749351405930,1.34622589,105580.0,105570.0,0.36484878]
[1749351408035,1.34602589,105580.0,105570.0,0.36484878]
[1749351408335,1.31667701,105580.0,105570.0,0.40917336]
[1749351408835,1.31667701,105580.0,105570.0,0.04837336]
[1749351409434,1.31667701,105580.0,105570.0,0.1074711]
[1749351409736,1.31667701,105580.0,105570.0,0.04837336]
[1749351415839,1.74607701,105580.0,105570.0,0.04837336]
[1749351421235,0.1893585,105570.0,105560.0,0.10348849]
[1749351421445,1.03801019,105570.0,105560.0,0.04439075]
[1749351422644,0.1893765,105560.0,105550.0,1.16477494]
[1749351422844,0.53609326,105560.0,105550.0,1.36477494]
[1749351423744,0.53609326,105560.0,105550.0,1.36481494]
[1749351423943,0.4316765,105560.0,105550.0,1.36681494]
[1749351424244,0.4316765,105560.0,105550.0,1.31946644]
[1749351424245,0.53609326,105560.0,105550.0,1.31946644]
[1749351424446,0.53609326,105560.0,105550.0,1.32046644]
[1749351427245,0.53609326,105560.0,105550.0,0.84369214]
[1749351427451,0.53609326,105560.0,105550.0,1.27313214]
[1749351427752,0.56779326,105560.0,105550.0,1.27313214]
[1749351431254,0.56779326,105560.0,105550.0,0.91233214]
[1749351431459,0.56779326,105560.0,105550.0,1.27313214]
[1749351433157,0.56779326,105560.0,105550.0,0.84369214]
[1749351433359,0.56779326,105560.0,105550.0,1.27313214]
[1749351436361,0.56779326,105560.0,105550.0,0.84369214]
[1749351436662,0.56779326,105560.0,105550.0,1.27313214]
[1749351437858,0.56779326,105560.0,105550.0,0.81229214]
[1749351438165,1.12094495,105560.0,105550.0,0.003]
[1749351439460,1.12094495,105560.0,105550.0,0.00704878]
[1749351444566,1.55038495,105560.0,105550.0,0.00704878]
[1749351445071,1.91118495,105560.0,105550.0,0.00704878]
[1749351448373,2.13371928,105560.0,105550.0,0.00704878]
[1749351448670,0.39822792,105550.0,105540.0,0.3608]
[1749351448972,1.07740627,105550.0,105540.0,0.3608]
[1749351449161,0.1894124,105540.0,105530.0,0.5826296]
[1749351449470,0.84304943,105540.0,105530.0,0.5826296]
[1749351451373,0.91732609,105540.0,105530.0,0.5826296]
[1749351451571,0.91732609,105540.0,105530.0,0.5846296]
[1749351451769,0.98002609,105540.0,105530.0,0.5846296]
[1749351452961,0.94852609,105540.0,105530.0,0.5846296]
[1749351453168,0.94852609,105540.0,105530.0,0.6460296]
[1749351453368,1.05294285,105540.0,105530.0,0.6460296]
[1749351454167,0.94852609,105540.0,105530.0,0.6460296]
[1749351454575,0.84988609,105540.0,105530.0,0.65007838]
[1749351454773,0.81868609,105540.0,105530.0,0.65007838]
[1749351454970,0.81868609,105540.0,105530.0,0.77449514]
[1749351454971,0.37778609,105540.0,105530.0,0.77449514]
[1749351455176,0.47642609,105540.0,105530.0,0.77449514]
[1749351455477,0.47662609,105540.0,105530.0,0.83359288]
[1749351455976,0.46694582,105540.0,105530.0,0.83359288]
[1749351457180,0.47650342,105540.0,105530.0,0.83359288]
[1749351458278,0.47650342,105540.0,105530.0,0.92235672]
[1749351458879,0.37208666,105540.0,105530.0,0.92235672]
[1749351459179,0.47650342,105540.0,105530.0,0.92235672]
[1749351460679,0.46694582,105540.0,105530.0,0.92235672]
[1749351460980,0.2841118,105550.0,105540.0,0.1894124]
[1749351461174,0.2841118,105550.0,105540.0,1.3076069]
[1749351461379,0.38852856,105550.0,105540.0,1.3076069]
[1749351461582,0.39801476,105550.0,105540.0,1.3076069]
[1749351461985,0.39821476,105550.0,105540.0,1.3076069]
[1749351462379,0.39821476,105550.0,105540.0,1.20319014]
[1749351464181,0.0002,105550.0,105540.0,1.3076069]
[1749351464490,0.53462593,105560.0,105550.0,0.1893945]
[1749351464783,0.61462593,105560.0,105550.0,0.6452945]
[1749351465979,0.62412625,105560.0,105550.0,0.6452945]
[1749351466180,0.62412625,105560.0,105550.0,0.70439224]
[1749351466681,0.56412625,105560.0,105550.0,0.70439224]
[1749351466875,0.93662625,105560.0,105550.0,0.6452945]
[1749351467084,1.14662625,105560.0,105550.0,0.6452945]
[1749351467587,1.15062625,105560.0,105550.0,0.6452945]
[1749351467789,1.18232625,105560.0,105550.0,0.6452945]
[1749351468297,1.27092136,105560.0,105550.0,0.6452945]
[1749351468495,1.18232625,105560.0,105550.0,0.6452945]
[1749351468696,1.18232625,105560.0,105550.0,0.6142945]
[1749351468888,1.18232625,105560.0,105550.0,0.5831945]
[1749351469293,1.21422625,105560.0,105550.0,0.5831945]
[1749351470895,1.31864301,105560.0,105550.0,0.58724328]
[1749351471592,1.31864301,105560.0,105550.0,0.36484878]
[1749351471792,1.40723812,105560.0,105550.0,0.36484878]
[1749351472099,1.40723812,105560.0,105550.0,0.00404878]
[1749351472297,1.76803812,105560.0,105550.0,0.00404878]
[1749351472494,1.40723812,105560.0,105550.0,0.00404878]
[1749351484204,1.52535569,105560.0,105550.0,0.00404878]
[1749351485807,1.88615569,105560.0,105550.0,0.00404878]
[1749351486301,1.52535569,105560.0,105550.0,0.00404878]
[1749351486496,2.30189488,105560.0,105550.0,0.00404878]
[1749351486702,2.33141734,105560.0,105550.0,0.00404878]
[1749351488404,2.21329977,105560.0,105550.0,0.00404878]
[1749351488598,2.36097631,105560.0,105550.0,0.00404878]
[1749351490515,2.04772603,105560.0,105550.0,0.00404878]
[1749351490715,2.36097631,105560.0,105550.0,0.00404878]
[1749351494619,0.1894124,105540.0,105530.0,0.43706823]
[1749351494812,1.14549077,105540.0,105530.0,0.43706823]
[1749351495012,1.24309077,105540.0,105530.0,0.43706823]
[1749351495423,0.82444592,105540.0,105530.0,0.43706823]
[1749351495606,0.91309077,105540.0,105530.0,0.43706823]
[1749351495806,0.91309077,105540.0,105530.0,0.3927]
[1749351496012,0.91309077,105540.0,105530.0,0.5821304]
[1749351496312,0.80867401,105540.0,105530.0,0.5831304]
[1749351496922,0.80867401,105540.0,105530.0,0.5841304]
[1749351497115,0.77557401,105540.0,105530.0,0.69099863]
[1749351497315,0.77557401,105540.0,105530.0,0.6466304]
[1749351497621,0.77557401,105540.0,105530.0,0.4572]
[1749351497822,1.16747401,105540.0,105530.0,0.5841303]
[1749351498025,0.80747401,105540.0,105530.0,0.5841303]
[1749351498522,0.71882916,105540.0,105530.0,0.68759627]
[1749351499323,0.79333696,105540.0,105530.0,0.68759627]
[1749351499819,0.79333696,105540.0,105530.0,0.49816597]
[1749351500022,0.79333696,105540.0,105530.0,0.68759627]
[1749351500322,1.21775372,105540.0,105530.0,0.68759627]
[1749351500624,0.89775372,105540.0,105530.0,0.68759627]
[1749351501120,0.89775372,105540.0,105530.0,0.72039627]
[1749351501823,0.86585372,105540.0,105530.0,0.72039627]
[1749351502023,0.86585372,105540.0,105530.0,0.75189627]
[1749351503221,0.86585372,105540.0,105530.0,0.46626597]
[1749351503417,0.3315113,105530.0,105520.0,0.05916589]
[1749351503619,0.1894483,105520.0,105510.0,0.0306]
[1749351503815,1.04088182,105520.0,105510.0,0.2606]
[1749351504110,1.13948182,105520.0,105510.0,0.2606]
[1749351504510,1.13948182,105520.0,105510.0,0.0306]
[1749351504713,1.13948182,105520.0,105510.0,0.2200663]
[1749351505023,1.13948182,105520.0,105510.0,0.0306]
[1749351505726,1.13948182,105520.0,105510.0,0.220066]
[1749351506224,1.13948182,105520.0,105510.0,0.0306]
[1749351506425,1.16948182,105520.0,105510.0,0.220066]
[1749351506626,1.16948182,105520.0,105510.0,0.221066]
[1749351506825,1.16948182,105520.0,105510.0,0.222066]
[1749351507227,1.06518284,105520.0,105510.0,0.222066]
[1749351508127,1.06518284,105520.0,105510.0,0.0326]
[1749351508623,1.06518284,105520.0,105510.0,0.222066]
[1749351509327,0.2982883,105520.0,105510.0,0.582866]
[1749351509520,0.40282284,105520.0,105510.0,0.616066]
[1749351511428,0.30418284,105520.0,105510.0,0.616066]
[1749351511628,0.2982883,105520.0,105510.0,0.616066]
[1749351514030,0.40282284,105520.0,105510.0,0.616066]
[1749351523432,0.40282284,105520.0,105510.0,0.647466]
[1749351524336,0.43432284,105520.0,105510.0,0.647466]
[1749351527048,0.33568284,105520.0,105510.0,0.647466]
[1749351527340,0.43432284,105520.0,105510.0,0.647466]
[1749351528537,0.46602284,105520.0,105510.0,0.582866]
[1749351529132,0.46601611,105520.0,105510.0,0.582866]
[1749351531347,0.49671611,105520.0,105510.0,0.582866]
[1749351533146,0.49671611,105520.0,105510.0,0.67162984]
[1749351533348,0.49671611,105520.0,105510.0,0.7308532]
[1749351537550,0.49671611,105520.0,105510.0,0.3700532]
[1749351537758,0.49671611,105520.0,105510.0,0.7308532]
[1749351538051,0.49671611,105520.0,105510.0,0.3700532]
[1749351538454,0.58536096,105520.0,105510.0,0.28128936]
[1749351538652,0.68988877,105520.0,105510.0,0.64208936]
[1749351539749,0.58536096,105520.0,105510.0,0.64208936]
[1749351540454,0.58516096,105520.0,105510.0,0.64208936]
[1749351543458,0.58516096,105520.0,105510.0,0.61148936]
[1749351543655,0.68968877,105520.0,105510.0,0.61148936]
[1749351546563,0.60104392,105520.0,105510.0,0.61148936]
[1749351547463,0.68968877,105520.0,105510.0,0.61148936]
[1749351548162,0.60104392,105520.0,105510.0,0.61148936]
[1749351553470,0.96104392,105520.0,105510.0,0.61148936]
[1749351553763,1.16104392,105520.0,105510.0,0.61148936]
[1749351554361,1.16104392,105520.0,105510.0,0.25068936]
[1749351554568,1.16104392,105520.0,105510.0,0.61148936]
[1749351554766,1.16104392,105520.0,105510.0,0.25068936]
[1749351556267,1.16104392,105520.0,105510.0,0.3394532]
[1749351563186,1.16104392,105520.0,105510.0,0.7002532]
[1749351564988,1.16104392,105520.0,105510.0,0.3394532]
[1749351565285,1.16104392,105520.0,105510.0,0.7002532]
[1749351565877,1.16104392,105520.0,105510.0,0.3394532]
[1749351566083,1.16104392,105520.0,105510.0,0.7002532]
[1749351566283,1.16104392,105520.0,105510.0,0.3394532]
[1749351574591,1.16104392,105520.0,105510.0,0.25068936]
[1749351575090,1.24968877,105520.0,105510.0,0.29511988]
[1749351577090,1.24968877,105520.0,105510.0,0.29511469]
[1749351578391,1.24968877,105520.0,105510.0,0.23589133]
[1749351585698,1.24968877,105520.0,105510.0,0.59669133]
[1749351585890,0.84832877,105520.0,105510.0,0.59669133]
[1749351586094,0.93913707,105520.0,105510.0,0.62699133]
[1749351586291,0.79578877,105520.0,105510.0,0.69189133]
[1749351586495,0.79598877,105520.0,105510.0,0.69189133]
[1749351586795,0.59282096,105520.0,105510.0,0.69189133]
[1749351586995,0.48146096,105520.0,105510.0,0.75111469]
[1749351587196,0.48146096,105520.0,105510.0,0.69189133]
[1749351587397,0.48126096,105520.0,105510.0,0.69189133]
[1749351587698,0.48146096,105520.0,105510.0,0.69189133]
[1749351588398,0.39281611,105520.0,105510.0,0.83987853]
[1749351590396,0.1896483,105520.0,105510.0,0.83987853]
[1749351590596,0.29417611,105520.0,105510.0,0.7954532]
[1749351590990,0.29397611,105520.0,105510.0,0.7954532]
[1749351591694,0.29417611,105520.0,105510.0,0.7954532]
[1749351594902,0.29417611,105520.0,105510.0,0.83986472]
[1749351595304,0.29417611,105520.0,105510.0,0.8398647]
[1749351595501,0.29417611,105520.0,105510.0,0.7954532]
[1749351595701,0.29417611,105520.0,105510.0,0.83986475]
[1749351595901,0.29417611,105520.0,105510.0,0.7954532]
[1749351596100,0.29417611,105520.0,105510.0,0.83986452]
[1749351597207,0.29417611,105520.0,105510.0,0.7954532]
[1749351597504,0.29417611,105520.0,105510.0,0.83986411]
[1749351597805,0.29417611,105520.0,105510.0,0.7954532]
[1749351598304,0.29417611,105520.0,105510.0,0.83986421]
[1749351599004,0.29417611,105520.0,105510.0,0.7954532]
[1749351600206,0.1896483,105520.0,105510.0,0.7954532]
[1749351600406,0.29417611,105520.0,105510.0,0.7954532]
[1749351601705,0.0002,105520.0,105510.0,0.7954532]
[1749351601910,0.29397581,105520.0,105510.0,0.90998101]
[1749351602102,0.29417581,105520.0,105510.0,0.90998101]
[1749351602409,0.0002,105520.0,105510.0,0.80543588]
[1749351602615,0.29417591,105520.0,105510.0,0.80543521]
[1749351602808,0.29417591,105520.0,105510.0,0.74622984]
[1749351603309,0.29417591,105520.0,105510.0,0.80543159]
[1749351604104,0.10472781,105520.0,105510.0,0.80543159]
[1749351604710,0.29417581,105520.0,105510.0,0.80543159]
[1749351605410,0.10472781,105520.0,105510.0,0.80543159]
[1749351605611,0.29417591,105520.0,105510.0,0.80543159]
[1749351606112,0.10472781,105520.0,105510.0,0.80543159]
[1749351606312,0.10472781,105520.0,105510.0,0.9099594]
[1749351607411,0.29417591,105520.0,105510.0,0.9099594]
[1749351607612,0.10472781,105520.0,105510.0,0.9099594]
[1749351608209,0.29417591,105520.0,105510.0,0.9099594]
[1749351608707,0.29417591,105520.0,105510.0,0.85075765]
[1749351609412,0.10472781,105520.0,105510.0,1.21075765]
[1749351609813,0.10472781,105520.0,105510.0,1.32892945]
[1749351610013,0.10452781,105520.0,105510.0,1.32892945]
[1749351610313,0.10472781,105520.0,105510.0,1.21075765]
[1749351610613,0.10472781,105520.0,105510.0,1.32892945]
[1749351610813,0.10472781,105520.0,105510.0,1.68972945]
[1749351611015,0.10472781,105520.0,105510.0,1.58520164]
[1749351611203,0.10472781,105520.0,105510.0,1.68972945]
[1749351611409,0.10472781,105520.0,105510.0,1.57155765]
[1749351613317,0.40870362,105520.0,105510.0,1.37254325]
[1749351613615,0.47080362,105520.0,105510.0,0.71042325]
[1749351613810,0.50360362,105520.0,105510.0,1.22122325]
[1749351618020,0.39907581,105520.0,105510.0,1.22122325]
[1749351618321,0.30417581,105520.0,105510.0,1.30998709]
[1749351618622,0.29417581,105520.0,105510.0,1.4764149]
[1749351618924,0.29397581,105520.0,105510.0,1.4764149]
[1749351619119,0.29397581,105520.0,105510.0,1.37188709]
[1749351619318,0.29417581,105520.0,105510.0,1.37188709]
[1749351625928,0.29417581,105520.0,105510.0,1.39098488]
[1749351628426,0.29417581,105520.0,105510.0,1.34664373]
[1749351628627,0.29417581,105520.0,105510.0,1.45117154]
[1749351630434,0.29417581,105520.0,105510.0,1.34664373]
[1749351630631,0.39870362,105520.0,105510.0,1.34664373]
[1749351630832,0.42900362,105520.0,105510.0,1.34664373]
[1749351631036,0.32447581,105520.0,105510.0,1.34664373]
[1749351635939,0.32447581,105520.0,105510.0,1.50394373]
[1749351636146,0.32447581,105520.0,105510.0,1.34664373]
[1749351638447,0.32447581,105520.0,105510.0,1.0302076]
[1749351638643,0.32447581,105520.0,105510.0,1.3910076]
[1749351638843,0.29417581,105520.0,105510.0,1.3910076]
[1749351641445,0.29417581,105520.0,105510.0,1.0302076]
[1749351641648,0.29417581,105520.0,105510.0,1.3910076]
[1749351643149,0.39870362,105520.0,105510.0,1.3910076]
[1749351643447,0.39870362,105520.0,105510.0,1.33180763]
[1749351643646,0.29417581,105520.0,105510.0,1.33180763]
[1749351644552,0.29417581,105520.0,105510.0,1.39103894]
[1749351645150,0.39870362,105520.0,105510.0,1.39103894]
[1749351645351,0.39870362,105520.0,105510.0,1.33180763]
[1749351645551,0.39870362,105520.0,105510.0,1.3910398]
[1749351645848,0.43120362,105520.0,105510.0,1.3910398]
[1749351647143,0.43120362,105520.0,105510.0,1.33180763]
[1749351647344,0.43120362,105520.0,105510.0,1.39104182]
[1749351647549,0.43120362,105520.0,105510.0,1.33180763]
[1749351647745,0.43120362,105520.0,105510.0,1.39104201]
[1749351649151,0.33667581,105520.0,105510.0,1.39104201]
[1749351649552,0.44120362,105520.0,105510.0,1.39104201]
[1749351650251,0.33667581,105520.0,105510.0,1.39104201]
[1749351650453,0.33647581,105520.0,105510.0,1.33180763]
[1749351650850,0.33647581,105520.0,105510.0,1.39104134]
[1749351651548,0.33647581,105520.0,105510.0,1.39104124]
[1749351651750,0.33647581,105520.0,105510.0,1.391041]
[1749351651950,0.33647581,105520.0,105510.0,1.33180763]
[1749351652150,0.33647581,105520.0,105510.0,1.39104141]
[1749351653743,0.33647581,105520.0,105510.0,1.33180763]
[1749351653944,0.33647581,105520.0,105510.0,1.39104052]
[1749351654149,0.33647581,105520.0,105510.0,1.33180763]
[1749351654352,0.33647581,105520.0,105510.0,1.39104066]
[1749351655155,0.33647581,105520.0,105510.0,1.33180763]
[1749351655358,0.33647581,105520.0,105510.0,1.39104051]
[1749351657860,0.33647581,105520.0,105510.0,1.33180763]
[1749351658061,0.33647581,105520.0,105510.0,1.3910405]
[1749351658964,0.33647581,105520.0,105510.0,1.33180763]
[1749351659156,0.33647581,105520.0,105510.0,1.39104089]
[1749351659358,0.33647581,105520.0,105510.0,1.33180763]
[1749351659557,0.33647581,105520.0,105510.0,1.39104199]
[1749351659764,0.33647581,105520.0,105510.0,1.33180763]
[1749351660969,0.44100362,105520.0,105510.0,1.23960763]
[1749351661271,0.50510362,105520.0,105510.0,1.29880353]
[1749351661461,0.296048,105520.0,105510.0,1.29880353]
[1749351661661,0.50510362,105520.0,105510.0,1.29880353]
[1749351662263,0.50510362,105520.0,105510.0,1.33110353]
[1749351668373,0.59374847,105520.0,105510.0,1.3755291]
[1749351668579,0.59374847,105520.0,105510.0,1.28676526]
[1749351670280,0.59374847,105520.0,105510.0,1.34786526]
[1749351673885,0.56044847,105520.0,105510.0,1.34786526]
[1749351674377,0.56044847,105520.0,105510.0,1.28676526]
[1749351678387,0.56044847,105520.0,105510.0,1.33110353]
[1749351678575,0.47180362,105520.0,105510.0,1.33110353]
[1749351682086,0.47180362,105520.0,105510.0,1.36360353]
[1749351682986,0.47180362,105520.0,105510.0,1.39360353]
[1749351685998,0.28430337,105530.0,105520.0,0.189448]
[1749351686194,0.38883118,105530.0,105520.0,0.90005669]
[1749351686490,0.34166978,105530.0,105520.0,0.90005669]
[1749351686894,0.34166978,105530.0,105520.0,0.90003499]
[1749351687096,0.29429968,105530.0,105520.0,0.84082434]
[1749351687298,0.29429968,105530.0,105520.0,0.90001613]
[1749351689403,0.29409968,105530.0,105520.0,0.91001613]
[1749351689608,0.29429968,105530.0,105520.0,0.91001613]
[1749351690407,0.29429968,105530.0,105520.0,0.80548832]
[1749351691510,0.29429968,105530.0,105520.0,0.84985927]
[1749351691809,0.29429968,105530.0,105520.0,0.80548832]
[1749351692010,0.29429968,105530.0,105520.0,0.84985869]
[1749351692214,0.29429968,105530.0,105520.0,0.84985865]
[1749351692406,0.29429968,105530.0,105520.0,0.80548832]
[1749351692705,0.29429968,105530.0,105520.0,0.84985552]
[1749351693107,0.29429968,105530.0,105520.0,0.80548832]
[1749351693309,0.29429968,105530.0,105520.0,0.84985315]
[1749351696506,0.29429968,105530.0,105520.0,0.76100462]
[1749351696905,0.29429968,105530.0,105520.0,0.84985315]
[1749351697213,0.29429968,105530.0,105520.0,1.19040462]
[1749351697409,0.29429968,105530.0,105520.0,1.27925315]
[1749351698013,0.29429968,105530.0,105520.0,1.19040462]
[1749351699109,0.39429968,105530.0,105520.0,0.50545662]
[1749351699311,0.1894481,105520.0,105510.0,0.82876035]
[1749351699509,0.1994481,105520.0,105510.0,1.00851182]
[1749351699816,0.1994481,105520.0,105510.0,0.78851182]
[1749351699817,0.47250372,105520.0,105510.0,0.78851182]
[1749351700221,0.2944481,105520.0,105510.0,0.78851182]
[1749351700518,0.50350372,105520.0,105510.0,0.78951182]
[1749351700706,0.50350372,105520.0,105510.0,0.79051182]
[1749351702311,1.09350372,105520.0,105510.0,1.03848662]
[1749351702516,1.09350372,105520.0,105510.0,0.92748662]
[1749351702715,1.09350372,105520.0,105510.0,0.49004662]
[1749351702908,1.09350372,105520.0,105510.0,0.67951262]
[1749351703113,1.09350372,105520.0,105510.0,0.43085483]
[1749351703313,1.09350372,105520.0,105510.0,0.575956]
[1749351703912,0.73350372,105520.0,105510.0,0.575956]
[1749351704114,1.06350372,105520.0,105510.0,0.575956]
[1749351704309,0.8744481,105520.0,105510.0,0.575956]
[1749351704514,1.08350372,105520.0,105510.0,0.575956]
[1749351704817,0.73350372,105520.0,105510.0,0.575956]
[1749351705618,0.73350372,105520.0,105510.0,0.215156]
[1749351707118,0.82214857,105520.0,105510.0,0.215156]
[1749351707617,0.61309295,105520.0,105510.0,0.215156]
[1749351707811,0.82214857,105520.0,105510.0,0.215156]
[1749351708010,0.61309295,105520.0,105510.0,0.215156]
[1749351708206,0.82214857,105520.0,105510.0,0.215156]
[1749351708412,0.73350372,105520.0,105510.0,0.215156]
[1749351708813,1.11350372,105520.0,105510.0,0.215156]
[1749351711119,0.9044481,105520.0,105510.0,0.215156]
[1749351711321,0.73350372,105520.0,105510.0,0.215156]
[1749351711512,0.73350372,105520.0,105510.0,0.02569]
[1749351711714,0.73350372,105520.0,105510.0,0.215156]
[1749351712018,1.08350372,105520.0,105510.0,0.02569]
[1749351712223,1.44430372,105520.0,105510.0,0.02569]
[1749351712824,1.53294857,105520.0,105510.0,0.02569]
[1749351713215,1.44430372,105520.0,105510.0,0.02569]
[1749351713723,1.2352481,105520.0,105510.0,0.02569]
[1749351713922,1.44430372,105520.0,105510.0,0.215156]
[1749351714224,1.44430372,105520.0,105510.0,0.02569]
[1749351714925,1.44430372,105520.0,105510.0,0.215156]
[1749351715122,1.08350372,105520.0,105510.0,0.215156]
[1749351715316,1.44430372,105520.0,105510.0,0.215156]
[1749351716923,1.44430372,105520.0,105510.0,0.02569]
[1749351717224,1.44430372,105520.0,105510.0,0.215156]
[1749351718519,1.53294857,105520.0,105510.0,0.215156]
[1749351721933,1.17214857,105520.0,105510.0,0.215156]
[1749351722134,1.53294857,105520.0,105510.0,0.215156]
[1749351722333,1.53294857,105520.0,105510.0,0.02569]
[1749351724135,1.53294857,105520.0,105510.0,0.215155]
[1749351724340,1.53294857,105520.0,105510.0,0.02569]
[1749351724532,1.17214857,105520.0,105510.0,0.02569]
[1749351726537,1.17214857,105520.0,105510.0,0.002]
[1749351727838,1.29034171,105520.0,105510.0,0.002]
[1749351728429,1.17214857,105520.0,105510.0,0.002]
[1749351728634,1.53294857,105520.0,105510.0,0.002]
[1749351728937,1.17214857,105520.0,105510.0,0.002]
[1749351729241,1.53294857,105520.0,105510.0,0.02569]
[1749351729742,1.17214857,105520.0,105510.0,0.02569]
[1749351729945,1.53294857,105520.0,105510.0,0.07001978]
[1749351730238,1.17214857,105520.0,105510.0,0.07001978]
[1749351730533,1.53294857,105520.0,105510.0,0.07001978]
[1749351730734,1.17214857,105520.0,105510.0,0.07001978]
[1749351730940,1.17214857,105520.0,105510.0,0.25948138]
[1749351731742,1.17214857,105520.0,105510.0,0.07001978]
[1749351732142,1.53294857,105520.0,105510.0,0.07001978]
[1749351732845,1.17214857,105520.0,105510.0,0.07001978]
[1749351733540,1.63747638,105520.0,105510.0,0.02569]
[1749351734136,1.75566952,105520.0,105510.0,0.02569]
[1749351734943,1.56249686,105520.0,105510.0,0.02569]
[1749351735939,1.66702467,105520.0,105510.0,0.02569]
[1749351736744,1.56249686,105520.0,105510.0,0.02569]
[1749351736949,1.35344124,105520.0,105510.0,0.02569]
[1749351737246,1.56249686,105520.0,105510.0,0.02569]
[1749351738544,1.53295631,105520.0,105510.0,0.02569]
[1749351739548,1.17215631,105520.0,105510.0,0.02569]
[1749351744345,1.29034945,105520.0,105510.0,0.02569]